fUSD/lending_fUSD_20260517
["ID","MTS","AMOUNT","RATE_DAILY","PERIOD"]
[422510074,1779007845000,-500.0,0.00040999,120]
[422510076,1779007845000,-200.0,0.00040999,120]
[422510075,1779007845000,-151.0,0.00040999,120]
[422510065,1779007845000,-1328.27659266,0.00040999,120]
[422510130,1779007846000,-152.0,0.00040999,120]
[422510140,1779007846000,-152.0,0.00040999,120]
[422510136,1779007846000,-500.0,0.00040999,120]
[422510133,1779007846000,-151.0,0.00040999,120]
[422510141,1779007846000,-500.0,0.00040999,120]
[422510134,1779007846000,-181.08010149,0.00040999,120]
[422510135,1779007846000,-152.0,0.00040999,120]
[422510137,1779007846000,-500.0,0.00040999,120]
[422510144,1779007846000,-251.0,0.00040999,120]
[422510146,1779007846000,-201.93286101,0.00040999,120]
[422510155,1779007846000,-300.14249605,0.00040999,120]
[422510154,1779007846000,-500.0,0.00040999,120]
[422510148,1779007846000,-152.0,0.00040999,120]
[422510145,1779007846000,-500.0,0.00040999,120]
[422510150,1779007846000,-152.0,0.00040999,120]
[422510153,1779007846000,-152.0,0.00040999,120]
[422510147,1779007846000,-260.287,0.00040999,120]
[422510138,1779007846000,-151.0,0.00040999,120]
[422510151,1779007846000,-269.917619,0.00040999,120]
[422510143,1779007846000,-152.0,0.00040999,120]
[422510139,1779007846000,-187.78006525,0.00040999,120]
[422510128,1779007846000,-151.0,0.00040999,120]
[422510132,1779007846000,-500.0,0.00040999,120]
[422510149,1779007846000,-500.0,0.00040999,120]
[422510115,1779007846000,-162.380719,0.00040999,120]
[422510113,1779007846000,-500.0,0.00040999,120]
[422510111,1779007846000,-557.5788265,0.00040999,120]
[422510112,1779007846000,-151.0,0.00040999,120]
[422510114,1779007846000,-151.0,0.00040999,120]
[422510116,1779007846000,-1000.0,0.00040999,120]
[422510129,1779007846000,-174.61919141,0.00040999,120]
[422510117,1779007846000,-152.0,0.00040999,120]
[422510142,1779007846000,-194.72792766,0.00040999,120]
[422510121,1779007846000,-500.0,0.00040999,120]
[422510118,1779007846000,-500.0,0.00040999,120]
[422510120,1779007846000,-151.0,0.00040999,120]
[422510123,1779007846000,-168.3888056,0.00040999,120]
[422510127,1779007846000,-500.0,0.00040999,120]
[422510126,1779007846000,-500.0,0.00040999,120]
[422510124,1779007846000,-152.0,0.00040999,120]
[422510125,1779007846000,-339.12272649,0.00040999,120]
[422510122,1779007846000,-151.0,0.00040999,120]
[422510131,1779007846000,-500.0,0.00040999,120]
[422510119,1779007846000,-378.02970455,0.00040999,120]
[422510152,1779007846000,-500.0,0.00040999,120]
[422510165,1779007846000,-151.0,0.00040999,120]
[422510158,1779007846000,-160.83711238,0.00040999,120]
[422510185,1779007846000,-181.08010149,0.00040999,120]
[422510188,1779007846000,-187.78006525,0.00040999,120]
[422510184,1779007846000,-2005.9555727,0.00040999,30]
[422510183,1779007846000,-151.0,0.00040999,120]
[422510187,1779007846000,-151.0,0.00040999,120]
[422510186,1779007846000,-2080.17592889,0.00040999,30]
[422510189,1779007846000,-1347.56185876,0.00040999,30]
[422510192,1779007846000,-153.32259511,0.00040999,120]
[422510190,1779007846000,-151.0,0.00040999,120]
[422510182,1779007846000,-174.61919141,0.00040999,120]
[422510194,1779007846000,-1000.0,0.00040999,120]
[422510198,1779007846000,-251688.66609822,0.00041,37]
[422510193,1779007846000,-245.69519349,0.00040999,120]
[422510196,1779007846000,-245.55034777,0.00041,120]
[422510201,1779007846000,-1000000.0,0.00041,120]
[422510200,1779007846000,-1000000.0,0.00041,120]
[422510202,1779007846000,-136359.61031125,0.00041,120]
[422510199,1779007846000,-576981.14678291,0.00041,120]
[422510204,1779007846000,-4602.85485459,0.00017636,2]
[422510156,1779007846000,-152.0,0.00040999,120]
[422510195,1779007846000,-1000.0,0.00040999,30]
[422510176,1779007846000,-1798.80895522,0.00040999,30]
[422510191,1779007846000,-194.72792766,0.00040999,120]
[422510168,1779007846000,-1555.5,0.00040999,30]
[422510163,1779007846000,-233.15289178,0.00040999,120]
[422510164,1779007846000,-163.3942781,0.00040999,120]
[422510161,1779007846000,-152.0,0.00040999,120]
[422510160,1779007846000,-152.0,0.00040999,120]
[422510162,1779007846000,-152.0,0.00040999,120]
[422510167,1779007846000,-156.587,0.00040999,120]
[422510157,1779007846000,-500.0,0.00040999,120]
[422510179,1779007846000,-168.3888056,0.00040999,120]
[422510169,1779007846000,-162.380719,0.00040999,120]
[422510170,1779007846000,-1613.0535,0.00040999,30]
[422510180,1779007846000,-1934.38338737,0.00040999,30]
[422510181,1779007846000,-151.0,0.00040999,120]
[422510171,1779007846000,-168.38880561,0.00040999,120]
[422510172,1779007846000,-1672.7364795,0.00040999,30]
[422510173,1779007846000,-151.0,0.00040999,120]
[422510177,1779007846000,-162.380719,0.00040999,120]
[422510174,1779007846000,-1734.62772924,0.00040999,30]
[422510175,1779007846000,-156.587,0.00040999,120]
[422510178,1779007846000,-1865.36488657,0.00040999,30]
[422510166,1779007846000,-1500.0,0.00040999,30]
[422510159,1779007846000,-500.0,0.00040999,120]
[422510206,1779007847000,-853.26866801,0.00017636,2]
[422510205,1779007847000,-416.0,0.00017636,2]
[422510207,1779007847000,-15.19285786,0.00017636,2]
[422510209,1779007847000,-378.8,0.00016438,2]
[422510210,1779007847000,-252.53,0.00016438,2]
[422510212,1779007847000,-1148.9113853,0.00017636,2]
[422510208,1779007847000,-805.66,0.00017636,2]
[422510211,1779007847000,-2300.38123841,0.00017636,2]
[422510219,1779008521000,500.0,0.00010699,2]
[422510218,1779008521000,500.0,0.00010699,2]
[422510217,1779008521000,500.0,0.00010699,2]
[422510216,1779008521000,500.0,0.00010699,2]
[422510223,1779008647000,809.34080542,0.0001611,15]
[422510226,1779008658000,151.17,7.55e-05,2]
[422510225,1779008658000,151.17,7.186e-05,2]
[422510227,1779008659000,151.17,7.913e-05,2]
[422510228,1779008659000,151.17,8.276e-05,2]
[422510230,1779008659000,151.17,9.003e-05,2]
[422510229,1779008659000,151.17,8.64e-05,2]
[422510231,1779008659000,151.17,9.367e-05,2]
[422510233,1779008660000,151.17,0.00010093,2]
[422510232,1779008660000,151.17,9.73e-05,2]
[422510238,1779008762000,2002.0,0.00030137,120]
[422510239,1779008791000,200.0,0.000226,120]
[422510240,1779008813000,233.20451011,0.00014255,21]
[422510247,1779009010000,-237.48681913,0.00010527,2]
[422510246,1779009010000,-151.17,0.00010457,2]
[422510248,1779009011000,-95.23696431,0.00010598,2]
[422510266,1779009031000,-151.17,0.00011184,2]
[422510261,1779009031000,-160.52575905,0.0001091,2]
[422510264,1779009031000,-150.0,0.00011023,2]
[422510262,1779009031000,-150.0,0.00010917,2]
[422510260,1779009031000,-151.17,0.0001082,2]
[422510259,1779009031000,-150.0,0.00010811,2]
[422510267,1779009031000,-257.0,0.00011235,2]
[422510269,1779009031000,-250.0,0.00011502,2]
[422510256,1779009031000,-163.41,0.00010699,2]
[422510257,1779009031000,-271.22858353,0.000107,2]
[422510249,1779009031000,-581.72491626,0.00010697,2]
[422510253,1779009031000,-300.0,0.00010698,2]
[422510251,1779009031000,-300.0,0.00010698,2]
[422510252,1779009031000,-1200.0,0.00010698,2]
[422510255,1779009031000,-6921.02249657,0.00010699,2]
[422510258,1779009031000,-150.0,0.00010705,2]
[422510250,1779009031000,-618.27508374,0.00010697,2]
[422510263,1779009031000,-585.1617404,0.00011,2]
[422510254,1779009031000,-1313.70041684,0.00010699,2]
[422510268,1779009031000,-645.38551449,0.000114,2]
[422510275,1779009031000,-173.62,0.00011761,2]
[422510277,1779009031000,-150.0,0.00011882,2]
[422510289,1779009031000,-151.17,0.00013001,2]
[422510286,1779009031000,-587.0,0.00012926,2]
[422510282,1779009031000,-151.17,0.00012274,2]
[422510283,1779009031000,-151.17,0.00012637,2]
[422510287,1779009031000,-891.0,0.00012945,2]
[422510285,1779009031000,-1987.0,0.00012925,2]
[422510290,1779009031000,-151.17,0.00013364,2]
[422510288,1779009031000,-255.0,0.00012977,2]
[422510280,1779009031000,-151.17,0.0001191,2]
[422510265,1779009031000,-150.0,0.00011129,2]
[422510272,1779009031000,-490.35,0.00011602,2]
[422510284,1779009031000,-16465.34529258,0.00012865,2]
[422510273,1779009031000,-1680.0,0.00011758,2]
[422510271,1779009031000,-151.17,0.00011547,2]
[422510278,1779009031000,-288.88,0.00011895,2]
[422510274,1779009031000,-420.0,0.0001176,2]
[422510279,1779009031000,-150.0,0.00011895,2]
[422510276,1779009031000,-1680.0,0.00011768,2]
[422510281,1779009031000,-500.0,0.00012041,2]
[422510270,1779009031000,-250.0,0.00011502,2]
[422510332,1779009032000,-3807.6037,0.00014599,2]
[422510318,1779009032000,-1206.96082785,0.00014399,2]
[422510319,1779009032000,-2412.11522595,0.00014399,2]
[422510317,1779009032000,-14907.47105398,0.00014399,2]
[422510323,1779009032000,-500.0,0.00014429,2]
[422510321,1779009032000,-615.79067413,0.00014399,2]
[422510324,1779009032000,-18550.25958141,0.00014456,2]
[422510325,1779009032000,-4508.19515923,0.00014489,2]
[422510329,1779009032000,-18550.25958141,0.00014583,2]
[422510327,1779009032000,-18550.25958141,0.00014519,2]
[422510328,1779009032000,-275.94,0.00014565,2]
[422510331,1779009032000,-167.088,0.00014598,2]
[422510316,1779009032000,-11403.28503893,0.00014399,2]
[422510326,1779009032000,-11836.2528,0.00014499,2]
[422510330,1779009032000,-1877.324,0.00014598,2]
[422510334,1779009032000,-500.0,0.00014698,2]
[422510344,1779009032000,-500.0,0.00014698,2]
[422510322,1779009032000,-600167.45682863,0.00014399,2]
[422510314,1779009032000,-780154.58413454,0.00014399,2]
[422510312,1779009032000,-6849.30023848,0.00014389,2]
[422510320,1779009032000,-739.83242181,0.00014399,2]
[422510291,1779009032000,-200.0,0.00013699,2]
[422510293,1779009032000,-250.0,0.00014,2]
[422510292,1779009032000,-151.17,0.00013727,2]
[422510295,1779009032000,-151.17,0.00014091,2]
[422510297,1779009032000,-152.24,0.00014095,2]
[422510299,1779009032000,-433.0,0.00014155,2]
[422510307,1779009032000,-255.75980045,0.00014329,2]
[422510306,1779009032000,-301.48251273,0.00014329,2]
[422510301,1779009032000,-500.0,0.00014155,2]
[422510303,1779009032000,-221.0,0.00014209,2]
[422510308,1779009032000,-1574.11657219,0.00014329,2]
[422510304,1779009032000,-1210.69476891,0.00014329,2]
[422510309,1779009032000,-750.50441111,0.00014329,2]
[422510310,1779009032000,-13163.05853824,0.00014329,2]
[422510333,1779009032000,-18550.25958141,0.00014646,2]
[422510311,1779009032000,-774.27539815,0.00014389,2]
[422510313,1779009032000,-18550.25958141,0.00014392,2]
[422510315,1779009032000,-88392.50379418,0.00014399,2]
[422510335,1779009032000,-500.0,0.00014698,2]
[422510305,1779009032000,-1294.64297778,0.00014329,2]
[422510339,1779009032000,-500.0,0.00014698,2]
[422510367,1779009032000,-500.0,0.00014999,2]
[422510361,1779009032000,-403.15504104,0.00014999,2]
[422510365,1779009032000,-500.0,0.00014999,2]
[422510363,1779009032000,-201.64576178,0.00014999,2]
[422510364,1779009032000,-500.0,0.00014999,2]
[422510366,1779009032000,-500.0,0.00014999,2]
[422510362,1779009032000,-500.0,0.00014999,2]
[422510360,1779009032000,-500.0,0.00014999,2]
[422510359,1779009032000,-569.23314244,0.00014999,2]
[422510369,1779009032000,-500.0,0.00014999,2]
[422510372,1779009032000,-500.0,0.00014999,2]
[422510371,1779009032000,-500.0,0.00014999,2]
[422510370,1779009032000,-500.0,0.00014999,2]
[422510374,1779009032000,-404.40856022,0.00014999,2]
[422510375,1779009032000,-186349.94535496,0.00015,2]
[422510376,1779009032000,-551017.32540065,0.00015,2]
[422510377,1779009032000,-664.14085378,0.00015,2]
[422510336,1779009032000,-550.0,0.00014698,2]
[422510373,1779009032000,-500.0,0.00014999,2]
[422510357,1779009032000,-774.27539815,0.0001499,2]
[422510378,1779009032000,-1950.17403298,0.00015,2]
[422510358,1779009032000,-774.27539815,0.0001499,2]
[422510342,1779009032000,-500.0,0.00014698,2]
[422510338,1779009032000,-500.0,0.00014698,2]
[422510340,1779009032000,-500.0,0.00014698,2]
[422510337,1779009032000,-500.0,0.00014698,2]
[422510368,1779009032000,-500.0,0.00014999,2]
[422510343,1779009032000,-500.0,0.00014698,2]
[422510346,1779009032000,-500.0,0.00014698,2]
[422510345,1779009032000,-500.0,0.00014698,2]
[422510354,1779009032000,-196.66283171,0.000149,2]
[422510341,1779009032000,-500.0,0.00014698,2]
[422510356,1779009032000,-8466.0,0.00014986,2]
[422510355,1779009032000,-275.94,0.00014929,2]
[422510347,1779009032000,-500.0,0.00014698,2]
[422510348,1779009032000,-500.0,0.00014698,2]
[422510350,1779009032000,-500.0,0.00014698,2]
[422510352,1779009032000,-3462.72895034,0.000149,3]
[422510353,1779009032000,-912.2974492,0.000149,2]
[422510351,1779009032000,-500.0,0.00014698,2]
[422510349,1779009032000,-500.0,0.00014698,2]
[422510381,1779009037000,-552.93113016,0.0001471,2]
[422510386,1779009037000,-503.47737862,0.0001471,2]
[422510385,1779009037000,-571.18927001,0.0001471,2]
[422510388,1779009037000,-4405.66696543,0.0001471,2]
[422510387,1779009037000,-446.26987052,0.0001471,2]
[422510389,1779009037000,-2614.17113764,0.0001471,2]
[422510382,1779009037000,-2917.5460326,0.0001471,2]
[422510390,1779009038000,-2596.81166317,0.0001471,2]
[422510416,1779009040000,-483.89378344,0.0001471,2]
[422510415,1779009040000,-300.8334,0.0001471,2]
[422510440,1779009042000,-285.63019797,0.0001471,2]
[422510443,1779009042000,-6465.98538652,0.00014773,2]
[422510448,1779009042000,-1744.84077788,0.00015,2]
[422510442,1779009042000,-2871.83875185,0.0001471,2]
[422510444,1779009042000,-10584.35291694,0.00014773,2]
[422510447,1779009042000,-1499.92127795,0.00014773,2]
[422510453,1779009043000,-730.48049219,0.00014837,2]
[422510451,1779009043000,-31212.08032922,0.00015,2]
[422510452,1779009043000,-2193.31730551,0.00015,2]
[422510449,1779009043000,-409.53,0.00015,2]
[422510450,1779009043000,-456.92043422,0.00015,2]
[422510457,1779009045000,-511.63701206,0.00014837,2]
[422510456,1779009045000,-366.69020406,0.00014837,2]
[422510458,1779009046000,-7521.88673891,0.00014837,2]
[422510459,1779009046000,-492.98298303,0.00014837,2]
[422510463,1779009046000,-2924.16203624,0.00014837,2]
[422510462,1779009046000,-366.20905667,0.00014837,2]
[422510461,1779009046000,-576.47645733,0.00014837,2]
[422510460,1779009046000,-769.66710309,0.00014837,2]
[422510474,1779009448000,155.35,8.426e-05,2]
[422510473,1779009448000,155.35,7.263e-05,2]
[422510475,1779009449000,155.35,9.589e-05,2]
[422510476,1779009737000,190.0,0.00030137,120]
[422510477,1779010150000,1000.0,0.00030136,120]
[422510479,1779010154000,-174.1316287,0.0001124,2]
[422510478,1779010154000,-155.35,0.00010752,2]
[422510493,1779010231000,-259.28550794,0.00011827,2]
[422510492,1779010231000,-214.9235469,0.00011815,2]
[422510494,1779010231000,-40.71449206,0.00011827,2]
[422510496,1779010231000,-250.0,0.00011827,2]
[422510495,1779010231000,-407.70555222,0.00011827,2]
[422510521,1779010232000,-150.0,0.00014499,2]
[422510518,1779010232000,-166.66,0.00014393,2]
[422510513,1779010232000,-1761.09,0.00013986,2]
[422510511,1779010232000,-150.0,0.00013873,2]
[422510512,1779010232000,-189.42,0.00013968,2]
[422510510,1779010232000,-166.66,0.00013872,2]
[422510508,1779010232000,-166.66,0.00013699,2]
[422510509,1779010232000,-222.49,0.00013871,2]
[422510506,1779010232000,-1648.44,0.00013581,2]
[422510502,1779010232000,-2000.0,0.00013461,2]
[422510505,1779010232000,-1296.28,0.00013558,2]
[422510503,1779010232000,-161.43,0.00013486,2]
[422510514,1779010232000,-166.66,0.00014046,2]
[422510504,1779010232000,-200.0,0.00013533,2]
[422510501,1779010232000,-155.35,0.00013079,2]
[422510499,1779010232000,-300.0,0.00011827,2]
[422510500,1779010232000,-250.0,0.00011828,2]
[422510498,1779010232000,-300.0,0.00011827,2]
[422510497,1779010232000,-542.29444778,0.00011827,2]
[422510507,1779010232000,-1761.09,0.00013645,2]
[422510517,1779010232000,-1761.09,0.00014327,2]
[422510535,1779010232000,-3262.30990841,0.00014767,2]
[422510516,1779010232000,-155.35,0.00014242,2]
[422510515,1779010232000,-166.66,0.0001422,2]
[422510541,1779010232000,-15482.68279214,0.000148,2]
[422510543,1779010232000,-264.00221638,0.000148,2]
[422510539,1779010232000,-1001.59004875,0.00014799,2]
[422510540,1779010232000,-5000.0,0.000148,2]
[422510537,1779010232000,-3262.30990841,0.00014789,2]
[422510531,1779010232000,-3262.30990841,0.00014722,2]
[422510528,1779010232000,-1000.0,0.000147,5]
[422510529,1779010232000,-3262.30990847,0.000147,2]
[422510542,1779010232000,-819.56436745,0.000148,2]
[422510525,1779010232000,-1761.09,0.00014668,2]
[422510533,1779010232000,-3262.30990841,0.00014744,2]
[422510527,1779010232000,-214.92354689,0.00014699,2]
[422510526,1779010232000,-500.0,0.00014698,2]
[422510523,1779010232000,-166.66,0.00014567,2]
[422510524,1779010232000,-800.0,0.000146,5]
[422510522,1779010232000,-500.0,0.000145,5]
[422510530,1779010232000,-99103.5589,0.00014722,2]
[422510519,1779010232000,-200.0,0.000144,5]
[422510520,1779010232000,-6801.8826,0.00014499,2]
[422510544,1779010233000,155.35,6.848e-05,2]
[422510551,1779010237000,-329.16,0.000148,2]
[422510552,1779010238000,-1472.71569,0.000148,2]
[422510553,1779010238000,-559.53,0.000148,2]
[422510556,1779010240000,-2500.0,0.000148,2]
[422510555,1779010240000,-2000.0,0.000148,2]
[422510554,1779010240000,-14255.71953403,0.000148,2]
[422510557,1779010240000,-7699.20521479,0.000148,2]
[422510559,1779010240000,-2789.75993642,0.000148,2]
[422510558,1779010240000,-6367.70126497,0.000148,2]
[422510560,1779010240000,-5000.0,0.000148,2]
[422510564,1779010240000,-5626.26138268,0.00014822,2]
[422510561,1779010240000,-1300.0,0.000148,5]
[422510563,1779010240000,-3262.30990841,0.00014811,2]
[422510562,1779010240000,-7699.20521479,0.00014811,2]
[422510565,1779010240000,-1499.83754391,0.00014822,2]
[422510594,1779010243000,-163.17233911,0.000147,2]
[422510593,1779010243000,-1297.81936231,0.000147,2]
[422510592,1779010243000,-394184.22099264,0.000147,2]
[422510591,1779010243000,-673.3,0.000147,2]
[422510601,1779010246000,-609.19279061,0.000147,2]
[422510603,1779010246000,-505.0,0.000147,2]
[422510602,1779010246000,-8403.51793068,0.000147,2]
[422510607,1779010246000,-10943.0,0.000147,2]
[422510606,1779010246000,-7560.78717971,0.000147,2]
[422510605,1779010246000,-1893.12,0.000147,2]
[422510604,1779010246000,-572.01969778,0.000147,2]
[422510616,1779010908000,-2000.0,0.00013673,2]
[422510615,1779010908000,-336.205743,0.0001353,2]
[422510617,1779010908000,-166.66,0.00013699,2]
[422510619,1779010908000,-384.66,0.00013719,2]
[422510621,1779010908000,-759.734257,0.00013892,2]
[422510620,1779010908000,-300.0,0.00013891,2]
[422510618,1779010908000,-824.22,0.00013719,2]
[422510622,1779011088000,500.0,0.00029452,120]
[422510623,1779011340000,1000.0,0.00030135,120]
[422510641,1779011432000,-150.0,0.00013536,2]
[422510643,1779011432000,-150.0,0.00013633,2]
[422510646,1779011432000,-150.0,0.00013675,2]
[422510647,1779011432000,-150.0,0.00013681,2]
[422510649,1779011432000,-150.0,0.00013729,2]
[422510648,1779011432000,-150.0,0.00013702,2]
[422510657,1779011432000,-150.0,0.00013916,2]
[422510651,1779011432000,-150.0,0.00013821,2]
[422510650,1779011432000,-150.0,0.00013778,2]
[422510655,1779011432000,-150.0,0.00013862,2]
[422510652,1779011432000,-150.0,0.00013826,2]
[422510654,1779011432000,-150.0,0.00013862,2]
[422510656,1779011432000,-150.0,0.00013874,2]
[422510653,1779011432000,-150.0,0.00013862,2]
[422510645,1779011432000,-150.0,0.00013654,2]
[422510640,1779011432000,-150.0,0.00013488,2]
[422510644,1779011432000,-166.66,0.00013638,2]
[422510639,1779011432000,-150.0,0.00013488,2]
[422510638,1779011432000,-250.79091868,0.00013488,2]
[422510629,1779011432000,-120.17202853,0.00013488,2]
[422510637,1779011432000,-81.83371299,0.00013488,2]
[422510636,1779011432000,-68.16628701,0.00013488,2]
[422510635,1779011432000,-152.60139806,0.00013488,2]
[422510627,1779011432000,-1260.58,0.00013388,2]
[422510634,1779011432000,-150.64077623,0.00013488,2]
[422510632,1779011432000,-150.0,0.00013488,2]
[422510631,1779011432000,-150.0,0.00013488,2]
[422510633,1779011432000,-150.0,0.00013488,2]
[422510630,1779011432000,-29.82797147,0.00013488,2]
[422510628,1779011432000,-2869.04317127,0.00013388,2]
[422510642,1779011432000,-150.0,0.00013584,2]
[422510658,1779011432000,-150.0,0.00013923,2]
[422510680,1779011432000,-500.0,0.00014308,2]
[422510660,1779011432000,-150.0,0.00013987,2]
[422510626,1779011432000,-189.42,0.0001323,2]
[422510692,1779011432000,-150.0,0.00014487,2]
[422510694,1779011432000,-59648.73527153,0.00014499,2]
[422510693,1779011432000,-150.0,0.00014487,2]
[422510691,1779011432000,-150.0,0.00014455,2]
[422510695,1779011432000,-584.89145541,0.00014499,2]
[422510687,1779011432000,-200.0,0.000144,5]
[422510689,1779011432000,-150.0,0.00014406,2]
[422510688,1779011432000,-384.66,0.00014405,2]
[422510685,1779011432000,-150.0,0.00014344,2]
[422510686,1779011432000,-150.0,0.00014358,2]
[422510682,1779011432000,-211.879,0.00014308,2]
[422510683,1779011432000,-150.0,0.0001431,2]
[422510678,1779011432000,-150.0,0.00014237,2]
[422510679,1779011432000,-150.0,0.00014261,2]
[422510677,1779011432000,-150.0,0.00014237,2]
[422510681,1779011432000,-2577.86,0.00014308,2]
[422510661,1779011432000,-150.0,0.00013987,2]
[422510662,1779011432000,-150.0,0.00013995,2]
[422510663,1779011432000,-150.0,0.00014019,2]
[422510666,1779011432000,-384.66,0.00014062,2]
[422510669,1779011432000,-150.0,0.00014116,2]
[422510668,1779011432000,-150.0,0.00014068,2]
[422510659,1779011432000,-150.0,0.00013971,2]
[422510665,1779011432000,-150.0,0.0001405,2]
[422510670,1779011432000,-150.0,0.0001413,2]
[422510673,1779011432000,-150.0,0.00014154,2]
[422510674,1779011432000,-150.0,0.00014164,2]
[422510676,1779011432000,-150.0,0.00014237,2]
[422510675,1779011432000,-150.0,0.00014213,2]
[422510684,1779011432000,-150.0,0.0001432,2]
[422510667,1779011432000,-150.0,0.00014068,2]
[422510690,1779011432000,-150.0,0.00014424,2]
[422510698,1779011438000,-91.79259743,0.00014498,2]
[422510697,1779011438000,-500.0,0.00014498,2]
[422510850,1779011440000,-220.67771769,0.00014498,2]
[422510857,1779011443000,-300.0,0.00014498,2]
[422510856,1779011443000,-500.0,0.00014498,2]
[422510855,1779011443000,-187.52968488,0.00014498,2]
[422510858,1779011443000,-3740.21197525,0.00014499,2]
[422510864,1779011446000,-500.0,0.00014498,2]
[422510865,1779011446000,-500.0,0.00014498,2]
[422510863,1779011446000,-206.55502416,0.00014498,2]
[422510867,1779011446000,-500.0,0.00014498,2]
[422510869,1779011446000,-217.61127473,0.00014498,2]
[422510868,1779011446000,-500.0,0.00014498,2]
[422510870,1779011446000,-269.76958123,0.00014498,2]
[422510872,1779011446000,-357.24041877,0.00014498,2]
[422510871,1779011446000,-500.0,0.00014498,2]
[422510866,1779011446000,-500.0,0.00014498,2]
[422510879,1779011862000,156.76,6.904e-05,2]
[422510885,1779012293000,486.70260584,0.0001,2]
[422510886,1779012304000,257.45468447,0.0002,7]
[422510887,1779012305000,1846.31335325,0.000274,120]
[422510888,1779012305000,1249.28829817,0.0001,2]
[422510892,1779012446000,467320.20308274,0.00030137,120]
[422510895,1779012540000,1000.0,0.00030136,120]
[422510920,1779012632000,-250.45734393,0.00013488,2]
[422510922,1779012632000,-217.9313898,0.00013488,2]
[422510930,1779012632000,-161.43,0.00013531,2]
[422510931,1779012632000,-150.0,0.00013556,2]
[422510932,1779012632000,-2000.0,0.00013582,2]
[422510925,1779012632000,-150.0,0.00013488,2]
[422510921,1779012632000,-150.0,0.00013488,2]
[422510927,1779012632000,-150.0,0.00013488,2]
[422510913,1779012632000,-1519.06,0.00013012,2]
[422510928,1779012632000,-200.0,0.000135,4]
[422510926,1779012632000,-150.0,0.00013488,2]
[422510929,1779012632000,-196.33462482,0.00013526,21]
[422510933,1779012632000,-400.0,0.000136,4]
[422510937,1779012632000,-150.0,0.00013692,2]
[422510935,1779012632000,-150.0,0.00013624,2]
[422510923,1779012632000,-150.0,0.00013488,2]
[422510918,1779012632000,-150.0,0.00013487,2]
[422510905,1779012632000,-312.02016305,0.00012861,2]
[422510915,1779012632000,-1519.06,0.00013337,2]
[422510901,1779012632000,-303.53,0.00012848,2]
[422510902,1779012632000,-103.96983695,0.00012859,2]
[422510903,1779012632000,-46.03016305,0.00012859,2]
[422510907,1779012632000,-1372.37016305,0.00012862,2]
[422510906,1779012632000,-498.97983695,0.00012862,2]
[422510904,1779012632000,-506.68983695,0.00012861,2]
[422510936,1779012632000,-1519.06,0.00013662,2]
[422510908,1779012632000,-1200.0,0.00012959,2]
[422510909,1779012632000,-300.0,0.00012959,2]
[422510910,1779012632000,-1200.0,0.00012959,2]
[422510911,1779012632000,-300.0,0.00012959,2]
[422510916,1779012632000,-1015.2,0.00013383,2]
[422510917,1779012632000,-500.0,0.00013446,2]
[422510914,1779012632000,-167.68,0.00013254,2]
[422510919,1779012632000,-150.0,0.00013488,2]
[422510912,1779012632000,-49052.28,0.0001296,2]
[422510934,1779012632000,-150.0,0.00013613,2]
[422510924,1779012632000,-151.31876581,0.00013488,2]
[422510939,1779012632000,-2500.0,0.00013699,2]
[422510976,1779012632000,-150.0,0.00014112,2]
[422510960,1779012632000,-150.0,0.00013987,2]